[Event "The Elitserien 2024/25: round 1 - 3"]
[Site "Scandic Infra City, Kanalvagen 10, Upplands Vasby, Sweden"]
[Date "2024.10.04"]
[Round "1.22"]
[White "Ahlander, Bjorn"]
[Black "Larsson, Anders"]
[Result "1-0"]
[TimeControl "90 minutes for 40 moves + 30 minutes for the rest of the game + 30 seconds per move from move one."]
[WhiteTitle "IM"]
[BlackTitle "FM"]
[WhiteFideId "1700251"]
[BlackFideId "1712128"]
[WhiteElo "2382"]
[BlackElo "2211"]

1. d4 {[%clk 01:30:56]} {[%emt 00:00:03]} e6 {[%clk 01:30:23]} {[%emt
00:00:39]} 2. Nf3 {[%clk 01:31:19]} {[%emt 00:00:06]} Nf6 {[%clk 01:30:15]}
{[%emt 00:00:38]} 3. g3 {[%clk 01:31:42]} {[%emt 00:00:07]} Be7 {[%clk
01:28:18]} {[%emt 00:02:26]} 4. Bg2 {[%clk 01:31:56]} {[%emt 00:00:16]} O-O
{[%clk 01:28:13]} {[%emt 00:00:34]} 5. c4 {[%clk 01:32:04]} {[%emt 00:00:23]}
d5 {[%clk 01:27:00]} {[%emt 00:01:44]} 6. O-O {[%clk 01:32:14]} {[%emt
00:00:19]} c6 {[%clk 01:21:10]} {[%emt 00:06:20]} 7. Qc2 {[%clk 01:32:04]}
{[%emt 00:00:40]} b6 {[%clk 01:15:27]} {[%emt 00:06:13]} 8. Bf4 {[%clk
01:32:25]} {[%emt 00:00:10]} Bb7 {[%clk 01:13:55]} {[%emt 00:02:01]} 9. Rd1
{[%clk 01:32:46]} {[%emt 00:00:09]} Nbd7 {[%clk 01:12:29]} {[%emt 00:01:57]} 10.
Ne5 {[%clk 01:33:00]} {[%emt 00:00:14]} Rc8 {[%clk 01:06:43]} {[%emt 00:06:18]}
11. Nc3 {[%clk 01:33:05]} {[%emt 00:00:24]} Nxe5 {[%clk 01:00:38]} {[%emt
00:06:35]} 12. dxe5 {[%clk 01:33:25]} {[%emt 00:00:09]} Nd7 {[%clk 01:00:20]}
{[%emt 00:00:49]} 13. cxd5 {[%clk 01:33:40]} {[%emt 00:00:16]} cxd5 {[%clk
00:59:49]} {[%emt 00:01:01]} 14. e4 {[%clk 01:33:55]} {[%emt 00:00:14]} g5
{[%clk 00:38:50]} {[%emt 00:21:29]} 15. Be3 {[%clk 01:33:12]} {[%emt 00:01:13]}
Nxe5 {[%clk 00:34:30]} {[%emt 00:04:51]} 16. exd5 {[%clk 01:33:31]} {[%emt
00:00:10]} Bxd5 {[%clk 00:32:27]} {[%emt 00:02:34]} 17. Bxd5 {[%clk 01:26:23]}
{[%emt 00:07:37]} exd5 {[%clk 00:32:15]} {[%emt 00:00:42]} 18. Qf5 {[%clk
01:26:28]} {[%emt 00:00:25]} Nc4 {[%clk 00:24:20]} {[%emt 00:08:25]} 19. Bd4
{[%clk 01:25:43]} {[%emt 00:01:15]} Rc6 {[%clk 00:22:28]} {[%emt 00:02:23]} 20.
b3 {[%clk 00:59:56]} {[%emt 00:26:16]} Na5 {[%clk 00:17:12]} {[%emt 00:05:47]}
21. Nxd5 {[%clk 01:00:01]} {[%emt 00:00:24]} Rd6 {[%clk 00:14:46]} {[%emt
00:02:57]} 22. Qe5 {[%clk 00:56:34]} {[%emt 00:03:57]} f6 {[%clk 00:12:30]}
{[%emt 00:02:46]} 23. Nxe7+ {[%clk 00:55:53]} {[%emt 00:01:10]} Kf7 {[%clk
00:09:35]} {[%emt 00:03:26]} 24. Qf5 {[%clk 00:47:52]} {[%emt 00:08:31]} Qxe7
{[%clk 00:09:53]} {[%emt 00:00:11]} 25. Qxh7+ {[%clk 00:45:56]} {[%emt
00:02:26]} Ke8 {[%clk 00:10:16]} {[%emt 00:00:07]} 26. Re1 {[%clk 00:45:15]}
{[%emt 00:01:11]} Re6 {[%clk 00:10:38]} {[%emt 00:00:09]} 27. Rxe6 {[%clk
00:44:15]} {[%emt 00:01:30]} Qxe6 {[%clk 00:11:05]} {[%emt 00:00:03]} 28. Qxa7
{[%clk 00:43:13]} {[%emt 00:01:31]} Nc6 {[%clk 00:11:20]} {[%emt 00:00:15]} 29.
Qxb6 {[%clk 00:42:41]} {[%emt 00:01:02]} Nxd4 {[%clk 00:11:42]} {[%emt
00:00:10]} 30. Qxd4 {[%clk 00:42:59]} {[%emt 00:00:10]} Kf7 {[%clk 00:11:30]}
{[%emt 00:00:43]} 31. Qc4 {[%clk 00:42:50]} {[%emt 00:00:38]} 1-0

[Event "The Elitserien 2024/25: round 1 - 3"]
[Site "Scandic Infra City, Kanalvagen 10, Upplands Vasby, Sweden"]
[Date "2024.10.04"]
[Round "1.23"]
[White "Andersson, Fredrik"]
[Black "Mauritsson, Sebastian"]
[Result "0-1"]
[TimeControl "90 minutes for 40 moves + 30 minutes for the rest of the game + 30 seconds per move from move one."]
[WhiteTitle "FM"]
[BlackTitle "FM"]
[WhiteFideId "1706187"]
[BlackFideId "1707892"]
[WhiteElo "2242"]
[BlackElo "2398"]

1. e4 {[%clk 01:30:57]} {[%emt 00:00:03]} c5 {[%clk 01:29:07]} {[%emt
00:01:54]} 2. Nf3 {[%clk 01:31:19]} {[%emt 00:00:07]} d6 {[%clk 01:29:30]}
{[%emt 00:00:07]} 3. d4 {[%clk 01:31:43]} {[%emt 00:00:07]} cxd4 {[%clk
01:29:53]} {[%emt 00:00:08]} 4. Nxd4 {[%clk 01:32:09]} {[%emt 00:00:04]} Nf6
{[%clk 01:30:17]} {[%emt 00:00:05]} 5. Nc3 {[%clk 01:32:34]} {[%emt 00:00:05]}
a6 {[%clk 01:30:43]} {[%emt 00:00:05]} 6. Bg5 {[%clk 01:31:56]} {[%emt
00:01:08]} Nbd7 {[%clk 01:31:04]} {[%emt 00:00:09]} 7. a3 {[%clk 01:28:25]}
{[%emt 00:04:01]} g6 {[%clk 01:24:50]} {[%emt 00:06:44]} 8. Qd2 {[%clk
01:12:44]} {[%emt 00:16:10]} b5 {[%clk 01:09:19]} {[%emt 00:16:01]} 9. O-O-O
{[%clk 01:05:15]} {[%emt 00:08:00]} Bb7 {[%clk 01:08:32]} {[%emt 00:01:17]} 10.
f3 {[%clk 01:02:01]} {[%emt 00:03:44]} Rc8 {[%clk 01:05:22]} {[%emt 00:03:40]}
11. Kb1 {[%clk 00:54:14]} {[%emt 00:08:17]} h6 {[%clk 00:47:31]} {[%emt
00:18:21]} 12. Be3 {[%clk 00:52:13]} {[%emt 00:02:30]} Bg7 {[%clk 00:47:59]}
{[%emt 00:00:03]} 13. Be2 {[%clk 00:35:53]} {[%emt 00:16:49]} h5 {[%clk
00:40:41]} {[%emt 00:07:48]} 14. h3 {[%clk 00:32:42]} {[%emt 00:03:42]} h4
{[%clk 00:39:27]} {[%emt 00:01:44]} 15. Rhe1 {[%clk 00:30:43]} {[%emt
00:02:30]} Nh5 {[%clk 00:35:21]} {[%emt 00:04:36]} 16. Nd5 {[%clk 00:23:51]}
{[%emt 00:07:21]} Nhf6 {[%clk 00:25:05]} {[%emt 00:10:47]} 17. Bg5 {[%clk
00:19:14]} {[%emt 00:05:05]} Bxd5 {[%clk 00:16:59]} {[%emt 00:08:36]} 18. exd5
{[%clk 00:19:05]} {[%emt 00:00:39]} Nxd5 {[%clk 00:17:28]} {[%emt 00:00:02]} 19.
Nxb5 {[%clk 00:11:07]} {[%emt 00:08:27]} axb5 {[%clk 00:16:09]} {[%emt
00:01:50]} 20. Qxd5 {[%clk 00:09:45]} {[%emt 00:01:51]} O-O {[%clk 00:10:35]}
{[%emt 00:06:06]} 21. Bxh4 {[%clk 00:09:21]} {[%emt 00:00:53]} Nb6 {[%clk
00:10:00]} {[%emt 00:01:05]} 22. Qe4 {[%clk 00:04:13]} {[%emt 00:05:37]} Na4
{[%clk 00:06:44]} {[%emt 00:03:47]} 23. Qxe7 {[%clk 00:04:16]} {[%emt
00:00:28]} Qa5 {[%clk 00:06:30]} {[%emt 00:00:43]} 24. Bf6 {[%clk 00:03:13]}
{[%emt 00:01:32]} Rce8 {[%clk 00:04:39]} {[%emt 00:02:22]} 25. Qxd6 {[%clk
00:02:41]} {[%emt 00:01:02]} Re6 {[%clk 00:04:59]} {[%emt 00:00:10]} 26. Bd8
{[%clk 00:02:38]} {[%emt 00:00:33]} Qa7 {[%clk 00:03:22]} {[%emt 00:02:06]} 27.
Qd7 {[%clk 00:02:06]} {[%emt 00:01:02]} Qf2 {[%clk 00:03:24]} {[%emt 00:00:29]}
28. Qxb5 {[%clk 00:01:18]} {[%emt 00:01:18]} Nxb2 {[%clk 00:03:22]} {[%emt
00:00:32]} 29. Rf1 {[%clk 00:00:34]} {[%emt 00:01:14]} Nxd1 {[%clk 00:02:19]}
{[%emt 00:01:32]} 30. Bxd1 {[%clk 00:00:38]} {[%emt 00:00:28]} Qd4 {[%clk
00:02:27]} {[%emt 00:00:21]} 0-1

[Event "The Elitserien 2024/25: round 1 - 3"]
[Site "Scandic Infra City, Kanalvagen 10, Upplands Vasby, Sweden"]
[Date "2024.10.04"]
[Round "1.24"]
[White "Smith, Axel"]
[Black "Glimbrant, Torbjorn"]
[Result "1-0"]
[TimeControl "90 minutes for 40 moves + 30 minutes for the rest of the game + 30 seconds per move from move one."]
[WhiteTitle "GM"]
[WhiteFideId "1707930"]
[BlackFideId "1700995"]
[WhiteElo "2430"]
[BlackElo "2023"]

1. c4 {[%clk 01:30:59]} {[%emt 00:00:02]} c5 {[%clk 01:29:29]} {[%emt
00:01:29]} 2. e3 {[%clk 01:31:22]} {[%emt 00:00:10]} Nf6 {[%clk 01:27:29]}
{[%emt 00:02:29]} 3. d4 {[%clk 01:31:45]} {[%emt 00:00:08]} e6 {[%clk
01:26:30]} {[%emt 00:01:27]} 4. Nf3 {[%clk 01:31:17]} {[%emt 00:00:59]} d5
{[%clk 01:26:23]} {[%emt 00:00:36]} 5. a3 {[%clk 01:31:18]} {[%emt 00:00:30]}
cxd4 {[%clk 01:23:28]} {[%emt 00:03:24]} 6. exd4 {[%clk 01:31:44]} {[%emt
00:00:06]} dxc4 {[%clk 01:23:45]} {[%emt 00:00:12]} 7. Bxc4 {[%clk 01:31:47]}
{[%emt 00:00:28]} Be7 {[%clk 01:22:56]} {[%emt 00:01:17]} 8. Nc3 {[%clk
01:31:27]} {[%emt 00:00:53]} O-O {[%clk 01:22:00]} {[%emt 00:01:24]} 9. O-O
{[%clk 01:31:43]} {[%emt 00:00:17]} Nc6 {[%clk 01:16:00]} {[%emt 00:06:28]} 10.
Re1 {[%clk 01:30:34]} {[%emt 00:01:40]} a6 {[%clk 01:09:50]} {[%emt 00:06:38]}
11. Ba2 {[%clk 01:23:16]} {[%emt 00:07:50]} Bd7 {[%clk 00:57:42]} {[%emt
00:12:35]} 12. Bf4 {[%clk 01:12:25]} {[%emt 00:11:24]} Rc8 {[%clk 00:46:36]}
{[%emt 00:11:34]} 13. Qd2 {[%clk 01:00:11]} {[%emt 00:12:45]} b5 {[%clk
00:17:18]} {[%emt 00:29:47]} 14. Ne5 {[%clk 00:43:11]} {[%emt 00:17:31]} b4
{[%clk 00:15:04]} {[%emt 00:02:43]} 15. axb4 {[%clk 00:42:29]} {[%emt
00:01:12]} Nxb4 {[%clk 00:11:38]} {[%emt 00:03:55]} 16. Bb3 {[%clk 00:27:50]}
{[%emt 00:15:11]} Bb5 {[%clk 00:10:35]} {[%emt 00:01:32]} 17. Bg5 {[%clk
00:20:02]} {[%emt 00:08:19]} Nbd5 {[%clk 00:07:21]} {[%emt 00:03:42]} 18. Nxb5
{[%clk 00:15:51]} {[%emt 00:04:42]} axb5 {[%clk 00:07:42]} {[%emt 00:00:09]} 19.
Qe2 {[%clk 00:16:09]} {[%emt 00:00:13]} h6 {[%clk 00:05:09]} {[%emt 00:03:01]}
20. Bxf6 {[%clk 00:14:40]} {[%emt 00:02:00]} Bxf6 {[%clk 00:05:26]} {[%emt
00:00:13]} 21. Nxf7 {[%clk 00:12:57]} {[%emt 00:02:14]} Qd7 {[%clk 00:01:52]}
{[%emt 00:04:03]} 22. Ne5 {[%clk 00:08:39]} {[%emt 00:04:49]} Bxe5 {[%clk
00:02:12]} {[%emt 00:00:09]} 23. Qxe5 {[%clk 00:08:58]} {[%emt 00:00:12]} Rce8
{[%clk 00:02:21]} {[%emt 00:00:19]} 24. Ra6 {[%clk 00:06:25]} {[%emt 00:03:05]}
Rf5 {[%clk 00:01:48]} {[%emt 00:01:02]} 25. Qd6 {[%clk 00:03:49]} {[%emt
00:03:07]} Qxd6 {[%clk 00:01:47]} {[%emt 00:00:30]} 26. Rxd6 {[%clk 00:04:18]}
{[%emt 00:00:01]} Kf7 {[%clk 00:01:33]} {[%emt 00:00:43]} 27. g3 {[%clk
00:02:17]} {[%emt 00:02:33]} h5 {[%clk 00:00:49]} {[%emt 00:01:15]} 28. Bxd5
{[%clk 00:01:42]} {[%emt 00:01:05]} exd5 {[%clk 00:00:32]} {[%emt 00:00:46]} 29.
Rd7+ {[%clk 00:01:50]} {[%emt 00:00:22]} Kf8 {[%clk 00:00:58]} {[%emt
00:00:04]} 30. Rxe8+ {[%clk 00:02:09]} {[%emt 00:00:12]} Kxe8 {[%clk 00:01:26]}
{[%emt 00:00:01]} 31. Rxg7 {[%clk 00:02:29]} {[%emt 00:00:10]} Rf3 {[%clk
00:01:20]} {[%emt 00:00:35]} 32. Rg5 {[%clk 00:02:33]} {[%emt 00:00:26]} h4
{[%clk 00:01:33]} {[%emt 00:00:18]} 33. gxh4 {[%clk 00:01:31]} {[%emt
00:01:32]} 1-0

[Event "The Elitserien 2024/25: round 1 - 3"]
[Site "Scandic Infra City, Kanalvagen 10, Upplands Vasby, Sweden"]
[Date "2024.10.04"]
[Round "1.25"]
[White "Soderstrom, Adrian"]
[Black "Garriga Cazorla, Pere"]
[Result "0-1"]
[TimeControl "90 minutes for 40 moves + 30 minutes for the rest of the game + 30 seconds per move from move one."]
[WhiteTitle "FM"]
[BlackTitle "IM"]
[WhiteFideId "1745786"]
[BlackFideId "32011601"]
[WhiteElo "2318"]
[BlackElo "2467"]

1. e4 {[%clk 01:30:47]} {[%emt 00:00:13]} c5 {[%clk 01:30:33]} {[%emt
00:00:22]} 2. Nf3 {[%clk 01:31:05]} {[%emt 00:00:16]} d6 {[%clk 01:30:31]}
{[%emt 00:00:33]} 3. d4 {[%clk 01:30:41]} {[%emt 00:00:55]} cxd4 {[%clk
01:30:53]} {[%emt 00:00:07]} 4. Nxd4 {[%clk 01:30:57]} {[%emt 00:00:14]} Nf6
{[%clk 01:31:16]} {[%emt 00:00:07]} 5. Nc3 {[%clk 01:31:22]} {[%emt 00:00:05]}
Nc6 {[%clk 01:31:37]} {[%emt 00:00:09]} 6. Bg5 {[%clk 01:31:25]} {[%emt
00:00:26]} e6 {[%clk 01:30:01]} {[%emt 00:02:06]} 7. Qd2 {[%clk 01:31:48]}
{[%emt 00:00:08]} a6 {[%clk 01:30:02]} {[%emt 00:00:29]} 8. O-O-O {[%clk
01:32:02]} {[%emt 00:00:15]} Bd7 {[%clk 01:30:13]} {[%emt 00:00:19]} 9. Kb1
{[%clk 01:31:15]} {[%emt 00:01:17]} Nxd4 {[%clk 01:26:52]} {[%emt 00:03:51]} 10.
Qxd4 {[%clk 01:31:41]} {[%emt 00:00:05]} Be7 {[%clk 01:27:14]} {[%emt
00:00:08]} 11. h4 {[%clk 01:31:39]} {[%emt 00:00:32]} Qc7 {[%clk 01:25:52]}
{[%emt 00:01:51]} 12. f3 {[%clk 01:23:10]} {[%emt 00:09:00]} b5 {[%clk
01:22:21]} {[%emt 00:04:01]} 13. Qd2 {[%clk 01:16:45]} {[%emt 00:06:55]} h6
{[%clk 01:21:18]} {[%emt 00:01:32]} 14. Be3 {[%clk 01:13:37]} {[%emt 00:03:38]}
h5 {[%clk 01:21:38]} {[%emt 00:00:11]} 15. Bd3 {[%clk 00:54:53]} {[%emt
00:19:14]} b4 {[%clk 01:17:41]} {[%emt 00:04:27]} 16. Ne2 {[%clk 00:55:16]}
{[%emt 00:00:06]} a5 {[%clk 01:18:10]} {[%emt 00:00:02]} 17. c4 {[%clk
00:53:42]} {[%emt 00:02:05]} Ba4 {[%clk 01:09:50]} {[%emt 00:08:49]} 18. Rc1
{[%clk 00:50:25]} {[%emt 00:03:46]} e5 {[%clk 01:09:36]} {[%emt 00:00:46]} 19.
Ng3 {[%clk 00:46:39]} {[%emt 00:04:15]} g6 {[%clk 01:09:15]} {[%emt 00:00:52]}
20. Bg5 {[%clk 00:45:52]} {[%emt 00:01:17]} Nd7 {[%clk 01:05:45]} {[%emt
00:04:00]} 21. Bxe7 {[%clk 00:39:02]} {[%emt 00:07:19]} Kxe7 {[%clk 01:05:49]}
{[%emt 00:00:27]} 22. Nf1 {[%clk 00:35:13]} {[%emt 00:04:19]} Nc5 {[%clk
01:02:50]} {[%emt 00:03:28]} 23. Ne3 {[%clk 00:34:53]} {[%emt 00:00:50]} Bc6
{[%clk 01:03:13]} {[%emt 00:00:08]} 24. Rhf1 {[%clk 00:27:37]} {[%emt
00:07:45]} Rae8 {[%clk 00:54:23]} {[%emt 00:09:20]} 25. Nd5+ {[%clk 00:22:01]}
{[%emt 00:06:08]} Bxd5 {[%clk 00:52:02]} {[%emt 00:02:50]} 26. cxd5 {[%clk
00:22:23]} {[%emt 00:00:08]} Kf8 {[%clk 00:49:49]} {[%emt 00:02:44]} 27. Bb5
{[%clk 00:15:30]} {[%emt 00:07:22]} Rb8 {[%clk 00:47:11]} {[%emt 00:03:09]} 28.
Bc6 {[%clk 00:14:04]} {[%emt 00:01:56]} Qe7 {[%clk 00:47:22]} {[%emt 00:00:19]}
29. g3 {[%clk 00:11:47]} {[%emt 00:02:47]} Kg7 {[%clk 00:47:02]} {[%emt
00:00:50]} 30. Qe3 {[%clk 00:10:47]} {[%emt 00:01:31]} Rbf8 {[%clk 00:40:55]}
{[%emt 00:06:38]} 31. Rfd1 {[%clk 00:09:06]} {[%emt 00:02:10]} Rd8 {[%clk
00:37:21]} {[%emt 00:04:03]} 32. Rd2 {[%clk 00:08:49]} {[%emt 00:00:47]} f5
{[%clk 00:36:10]} {[%emt 00:01:41]} 33. exf5 {[%clk 00:06:42]} {[%emt
00:02:38]} gxf5 {[%clk 00:36:23]} {[%emt 00:00:17]} 34. Re2 {[%clk 00:05:58]}
{[%emt 00:01:13]} Rh6 {[%clk 00:31:41]} {[%emt 00:05:13]} 35. Bb5 {[%clk
00:04:42]} {[%emt 00:01:45]} Rg6 {[%clk 00:30:22]} {[%emt 00:01:50]} 36. f4
{[%clk 00:02:30]} {[%emt 00:02:41]} e4 {[%clk 00:29:53]} {[%emt 00:01:00]} 37.
Rec2 {[%clk 00:02:26]} {[%emt 00:00:33]} Kh6 {[%clk 00:29:22]} {[%emt
00:01:01]} 38. Rg1 {[%clk 00:02:04]} {[%emt 00:00:52]} Rdg8 {[%clk 00:28:28]}
{[%emt 00:01:24]} 39. Rcg2 {[%clk 00:01:35]} {[%emt 00:00:59]} Qf6 {[%clk
00:27:59]} {[%emt 00:00:59]} 40. Bc4 {[%clk 00:00:36]} {[%emt 00:01:30]} R6g7
{[%clk 00:25:42]} {[%emt 00:02:48]} 41. Bb5 {[%clk 00:26:53]} {[%emt 00:04:12]}
a4 {[%clk 00:53:27]} {[%emt 00:02:45]} 42. Bc4 {[%clk 00:20:27]} {[%emt
00:06:56]} a3 {[%clk 00:48:17]} {[%emt 00:05:40]} 43. Qd2 {[%clk 00:15:08]}
{[%emt 00:05:49]} Na4 {[%clk 00:44:17]} {[%emt 00:04:30]} 44. b3 {[%clk
00:12:48]} {[%emt 00:02:51]} Nc3+ {[%clk 00:44:32]} {[%emt 00:00:13]} 45. Kc1
{[%clk 00:13:09]} {[%emt 00:00:09]} Rc8 {[%clk 00:43:35]} {[%emt 00:01:28]} 46.
Rd1 {[%clk 00:09:32]} {[%emt 00:04:07]} Nxd1 {[%clk 00:41:08]} {[%emt
00:02:57]} 47. Kxd1 {[%clk 00:09:57]} {[%emt 00:00:06]} e3 {[%clk 00:41:24]}
{[%emt 00:00:14]} 48. Qxb4 {[%clk 00:08:06]} {[%emt 00:02:20]} Rcg8 {[%clk
00:39:54]} {[%emt 00:02:00]} 49. Qe1 {[%clk 00:07:04]} {[%emt 00:01:32]} Qa1+
{[%clk 00:36:30]} {[%emt 00:03:53]} 50. Ke2 {[%clk 00:07:27]} {[%emt 00:00:07]}
Qxa2+ {[%clk 00:35:11]} {[%emt 00:01:50]} 51. Kf1 {[%clk 00:06:57]} {[%emt
00:00:59]} Qxg2+ {[%clk 00:35:13]} {[%emt 00:00:28]} 52. Kxg2 {[%clk 00:07:25]}
{[%emt 00:00:02]} Rxg3+ {[%clk 00:35:36]} {[%emt 00:00:06]} 0-1